fUST/lending_fUST_20250511
["ID","MTS","AMOUNT","RATE_DAILY","PERIOD"]
[360637110,1746912664602,-463.45,0.00011506,2]
[360637113,1746912664611,-573.32,0.00011506,2]
[360637115,1746912664622,-1204.18,0.00011506,2]
[360637117,1746912664632,-1967.65,0.00011506,2]
[360637119,1746912664642,-3088.11,0.00011506,2]
[360637121,1746912664651,-1232.95,0.00011506,2]
[360637123,1746912664661,-1041.57,0.00011506,2]
[360637125,1746912664671,-700.78,0.00011506,2]
[360637127,1746912664680,-4783.86,0.00011506,2]
[360637129,1746912664690,-407.69,0.00011506,2]
[360637131,1746912664700,-1652.45,0.00011506,2]
[360637133,1746912664710,-444.01,0.00011506,2]
[360637135,1746912664719,-1176.69,0.00011506,2]
[360637137,1746912664730,-513.96,0.00011506,2]
[360637139,1746912664739,-656.69,0.00011506,2]
[360637141,1746912664749,-400.0,0.00011506,2]
[360637143,1746912664758,-1565.91,0.00011506,2]
[360637145,1746912664767,-301.208528,0.00011513,2]
[360637147,1746912664777,-708.0,0.0001171,2]
[360637149,1746912664786,-2239.0,0.0001171,2]
[360637151,1746912664796,-404.0,0.0001171,2]
[360637153,1746912664805,-450.55,0.0001178,2]
[360637155,1746912664814,-400.0,0.0001178,2]
[360637157,1746912664824,-483.15,0.0001178,2]
[360637159,1746912664833,-400.0,0.0001178,2]
[360637161,1746912664844,-400.0,0.0001178,2]
[360637163,1746912664854,-400.0,0.0001178,2]
[360637165,1746912664863,-400.0,0.0001178,2]
[360637167,1746912664872,-400.0,0.0001178,2]
[360637169,1746912664882,-400.0,0.0001178,2]
[360637171,1746912664891,-767.08,0.0001178,2]
[360637173,1746912664901,-523.05,0.0001178,2]
[360637176,1746912664911,-400.0,0.0001178,2]
[360637178,1746912664920,-400.0,0.0001178,2]
[360637180,1746912664929,-428.69,0.0001178,2]
[360637182,1746912664938,-1231.88,0.0001178,2]
[360637184,1746912664948,-400.0,0.0001178,2]
[360637186,1746912664957,-555.94,0.0001178,2]
[360637187,1746912664967,-1008.55,0.0001178,2]
[360637189,1746912664976,-400.0,0.0001178,2]
[360637191,1746912664986,-632.05,0.0001178,2]
[360637194,1746912664995,-1052.41,0.0001178,2]
[360637196,1746912665005,-400.0,0.0001178,2]
[360637198,1746912665014,-400.0,0.0001178,2]
[360637200,1746912665024,-459.64,0.0001178,2]
[360637202,1746912665033,-468.37,0.0001178,2]
[360637204,1746912665043,-403.73,0.0001178,2]
[360637205,1746912665052,-413.92,0.0001178,2]
[360637213,1746912665113,-619.62,0.0001178,2]
[360637215,1746912665123,-695.09,0.0001178,2]
[360637217,1746912665132,-735.58,0.0001178,2]
[360637219,1746912665142,-721.89,0.0001178,2]
[360637221,1746912665151,-400.0,0.0001178,2]
[360637223,1746912665160,-1548.4,0.0001178,2]
[360637225,1746912665171,-2356.91,0.0001178,2]
[360637227,1746912665181,-794.11,0.0001178,2]
[360637229,1746912665191,-400.0,0.0001178,2]
[360637231,1746912665200,-838.55,0.0001178,2]
[360637233,1746912665209,-400.0,0.0001178,2]
[360637235,1746912665219,-400.0,0.0001178,2]
[360637237,1746912665228,-3381.21,0.0001178,2]
[360637239,1746912665237,-400.0,0.0001178,2]
[360637241,1746912665247,-2898.64,0.0001178,2]
[360637243,1746912665256,-481.84,0.0001178,2]
[360637245,1746912665266,-400.0,0.0001178,2]
[360637247,1746912665276,-400.0,0.0001178,2]
[360637249,1746912665285,-400.0,0.0001178,2]
[360637251,1746912665295,-1333.51,0.0001178,2]
[360637253,1746912665304,-633.58,0.0001178,2]
[360637255,1746912665314,-400.0,0.0001178,2]
[360637257,1746912665324,-494.9,0.0001178,2]
[360637259,1746912665333,-513.57,0.0001178,2]
[360637261,1746912665343,-802.91,0.0001178,2]
[360637263,1746912665352,-505.78,0.0001178,2]
[360637265,1746912665362,-626.66,0.0001178,2]
[360637267,1746912665373,-809.51,0.0001178,2]
[360637269,1746912665385,-400.0,0.0001178,2]
[360637271,1746912665396,-842.73,0.0001178,2]
[360637273,1746912665406,-697.59,0.0001178,2]
[360637275,1746912665416,-1841.44,0.0001178,2]
[360637277,1746912665425,-788.65,0.0001178,2]
[360637279,1746912665434,-1039.37,0.0001178,2]
[360637281,1746912665443,-569.05,0.0001178,2]
[360637283,1746912665456,-2342.17,0.0001178,2]
[360637285,1746912665465,-451.36,0.0001178,2]
[360637287,1746912665474,-695.2,0.0001178,2]
[360637289,1746912665484,-1028.56,0.0001178,2]
[360637291,1746912665493,-516.59494614,0.0001178,2]
[360637293,1746912665505,-498.13,0.0001178,2]
[360637295,1746912665514,-2119.75,0.0001178,2]
[360637297,1746912665525,-4434.68,0.0001178,2]
[360637299,1746912665534,-935.35,0.0001178,2]
[360637301,1746912665544,-680.96,0.0001178,2]
[360637303,1746912665554,-626.61,0.0001178,2]
[360637305,1746912665564,-424.95,0.0001178,2]
[360637307,1746912665574,-1042.16,0.0001178,2]
[360637309,1746912665584,-2312.88,0.0001178,2]
[360637311,1746912665593,-400.0,0.0001178,2]
[360637313,1746912665603,-400.0,0.0001178,2]
[360637315,1746912665612,-688.73,0.0001178,2]
[360637317,1746912665622,-706.22,0.0001178,2]
[360637319,1746912665631,-439.66,0.0001178,2]
[360637321,1746912665640,-1085.41,0.0001178,2]
[360637323,1746912665650,-841.55,0.0001178,2]
[360637326,1746912665659,-671.75,0.0001178,2]
[360637327,1746912665668,-400.0,0.0001178,2]
[360637329,1746912665678,-2146.14,0.0001178,2]
[360637331,1746912665687,-1015.72,0.0001178,2]
[360637333,1746912665697,-6440.41,0.0001178,2]
[360637336,1746912665707,-1037.4,0.0001178,2]
[360637338,1746912665716,-440.94,0.0001178,2]
[360637340,1746912665726,-400.0,0.0001178,2]
[360637342,1746912665735,-400.0,0.0001178,2]
[360637344,1746912665744,-4790.07,0.0001178,2]
[360637345,1746912665753,-1429.95,0.0001178,2]
[360637347,1746912665762,-430.02,0.0001178,2]
[360637349,1746912665772,-317.95103999,0.0001178,2]
[360637352,1746912665782,-400.0,0.0001178,2]
[360637354,1746912665791,-1223.02,0.0001178,2]
[360637356,1746912665801,-848.59,0.0001178,2]
[360637358,1746912665811,-400.0,0.0001178,2]
[360637360,1746912665821,-2882.98,0.0001178,2]
[360637361,1746912665831,-513.02,0.0001178,2]
[360637364,1746912665840,-463.45,0.0001178,2]
[360637366,1746912665851,-573.32,0.0001178,2]
[360637367,1746912665860,-1204.18,0.0001178,2]
[360637369,1746912665870,-1967.65,0.0001178,2]
[360637372,1746912665879,-3088.11,0.0001178,2]
[360637374,1746912665889,-1232.95,0.0001178,2]
[360637376,1746912665898,-1041.57,0.0001178,2]
[360637377,1746912665908,-700.78,0.0001178,2]
[360637379,1746912665917,-4783.86,0.0001178,2]
[360637382,1746912665927,-407.69,0.0001178,2]
[360637383,1746912665936,-1652.45,0.0001178,2]
[360637385,1746912665946,-444.01,0.0001178,2]
[360637387,1746912665955,-1176.69,0.0001178,2]
[360637390,1746912665965,-513.96,0.0001178,2]
[360637392,1746912665974,-656.69,0.0001178,2]
[360637393,1746912665984,-400.0,0.0001178,2]
[360637396,1746912665993,-1565.91,0.0001178,2]
[360637398,1746912666003,-2000.0,0.00011781,2]
[360637400,1746912666012,-1152.0,0.00011853,2]
[360637402,1746912666022,-1077.281326,0.00011939,2]
[360637404,1746912666032,-201251.46032166,0.00012,2]
[360637406,1746912666041,-1000.0,0.00012,3]
[360637408,1746912666051,-1000.0,0.00012,2]
[360637410,1746912666060,-6000.6270357,0.00012,2]
[360637412,1746912666070,-400.0,0.00012054,2]
[360637414,1746912666079,-450.55,0.00012054,2]
[360637416,1746912666089,-400.0,0.00012054,2]
[360637418,1746912666099,-483.15,0.00012054,2]
[360637420,1746912666109,-400.0,0.00012054,2]
[360637422,1746912666119,-400.0,0.00012054,2]
[360637424,1746912666129,-400.0,0.00012054,2]
[360637425,1746912666138,-400.0,0.00012054,2]
[360637426,1746912666148,-400.0,0.00012054,2]
[360637427,1746912666157,-222.21098222,0.00012054,2]
[360637428,1746912666167,-767.08,0.00012054,2]
[360637429,1746912666177,-523.05,0.00012054,2]
[360637430,1746912666187,-400.0,0.00012054,2]
[360637431,1746912666196,-400.0,0.00012054,2]
[360637432,1746912666206,-428.69,0.00012054,2]
[360637433,1746912666215,-1231.88,0.00012054,2]
[360637434,1746912666224,-400.0,0.00012054,2]
[360637435,1746912666234,-555.94,0.00012054,2]
[360637437,1746912666243,-1008.55,0.00012054,2]
[360637439,1746912666253,-400.0,0.00012054,2]
[360637441,1746912666263,-632.05,0.00012054,2]
[360637443,1746912666272,-1052.41,0.00012054,2]
[360637445,1746912666282,-400.0,0.00012054,2]
[360637447,1746912666291,-400.0,0.00012054,2]
[360637449,1746912666301,-459.64,0.00012054,2]
[360637451,1746912666312,-468.37,0.00012054,2]
[360637453,1746912666321,-403.73,0.00012054,2]
[360637455,1746912666331,-413.92,0.00012054,2]
[360637457,1746912666341,-619.62,0.00012054,2]
[360637459,1746912666352,-695.09,0.00012054,2]
[360637461,1746912666362,-735.58,0.00012054,2]
[360637463,1746912666373,-721.89,0.00012054,2]
[360637465,1746912666384,-431.95797357,0.00012054,2]
[360637467,1746912666394,-1548.4,0.00012054,2]
[360637469,1746912666404,-2356.91,0.00012054,2]
[360637471,1746912666415,-794.11,0.00012054,2]
[360637473,1746912666425,-475.07073956,0.00012054,2]
[360637475,1746912666435,-838.55,0.00012054,2]
[360637477,1746912666445,-400.0,0.00012054,2]
[360637479,1746912666458,-400.0,0.00012054,2]
[360637481,1746912666468,-3381.21,0.00012054,2]
[360637483,1746912666479,-400.0,0.00012054,2]
[360637486,1746912666490,-2898.64,0.00012054,2]
[360637488,1746912666500,-481.84,0.00012054,2]
[360637490,1746912666510,-400.0,0.00012054,2]
[360637492,1746912666520,-165.18007382,0.00012054,2]
[360637494,1746912666530,-400.0,0.00012054,2]
[360637496,1746912666541,-1333.51,0.00012054,2]
[360637498,1746912666551,-633.58,0.00012054,2]
[360637500,1746912666561,-400.0,0.00012054,2]
[360637502,1746912666570,-494.9,0.00012054,2]
[360637504,1746912666580,-513.57,0.00012054,2]
[360637506,1746912666590,-802.91,0.00012054,2]
[360637508,1746912666600,-505.78,0.00012054,2]
[360637510,1746912666610,-626.66,0.00012054,2]
[360637512,1746912666621,-809.51,0.00012054,2]
[360637514,1746912666630,-400.0,0.00012054,2]
[360637516,1746912666641,-842.73,0.00012054,2]
[360637518,1746912666651,-697.59,0.00012054,2]
[360637520,1746912666662,-1841.44,0.00012054,2]
[360637522,1746912666672,-788.65,0.00012054,2]
[360637524,1746912666682,-1039.37,0.00012054,2]
[360637526,1746912666693,-569.05,0.00012054,2]
[360637528,1746912666703,-2342.17,0.00012054,2]
[360637530,1746912666713,-451.36,0.00012054,2]
[360637532,1746912666724,-695.2,0.00012054,2]
[360637534,1746912666734,-1028.56,0.00012054,2]
[360637536,1746912666743,-498.13,0.00012054,2]
[360637538,1746912666754,-2119.75,0.00012054,2]
[360637540,1746912666765,-4434.68,0.00012054,2]
[360637542,1746912666775,-935.35,0.00012054,2]
[360637544,1746912666786,-680.96,0.00012054,2]
[360637546,1746912666796,-626.61,0.00012054,2]
[360637548,1746912666806,-424.95,0.00012054,2]
[360637551,1746912666816,-1042.16,0.00012054,2]
[360637553,1746912666826,-2312.88,0.00012054,2]
[360637555,1746912666838,-400.0,0.00012054,2]
[360637556,1746912666848,-400.0,0.00012054,2]
[360637559,1746912666858,-688.73,0.00012054,2]
[360637560,1746912666871,-706.22,0.00012054,2]
[360637563,1746912666882,-439.66,0.00012054,2]
[360637565,1746912666891,-1085.41,0.00012054,2]
[360637566,1746912666901,-841.55,0.00012054,2]
[360637569,1746912666912,-671.75,0.00012054,2]
[360637571,1746912666921,-400.0,0.00012054,2]
[360637573,1746912666932,-2146.14,0.00012054,2]
[360637575,1746912666943,-1015.72,0.00012054,2]
[360637577,1746912666954,-6440.41,0.00012054,2]
[360637579,1746912666964,-1037.4,0.00012054,2]
[360637581,1746912666974,-440.94,0.00012054,2]
[360637583,1746912666983,-404.69502333,0.00012054,2]
[360637585,1746912666993,-400.0,0.00012054,2]
[360637587,1746912667003,-4790.07,0.00012054,2]
[360637589,1746912667013,-1429.95,0.00012054,2]
[360637591,1746912667023,-430.02,0.00012054,2]
[360637593,1746912667034,-400.0,0.00012054,2]
[360637595,1746912667044,-1223.02,0.00012054,2]
[360637597,1746912667053,-848.59,0.00012054,2]
[360637599,1746912667062,-400.0,0.00012054,2]
[360637601,1746912667074,-2882.98,0.00012054,2]
[360637603,1746912667089,-513.02,0.00012054,2]
[360637605,1746912667099,-463.45,0.00012054,2]
[360637607,1746912667109,-573.32,0.00012054,2]
[360637609,1746912667119,-1204.18,0.00012054,2]
[360637611,1746912667129,-1967.65,0.00012054,2]
[360637613,1746912667139,-3088.11,0.00012054,2]
[360637615,1746912667149,-1232.95,0.00012054,2]
[360637618,1746912667159,-1041.57,0.00012054,2]
[360637620,1746912667169,-700.78,0.00012054,2]
[360637622,1746912667179,-4783.86,0.00012054,2]
[360637624,1746912667188,-407.69,0.00012054,2]
[360637626,1746912667198,-1652.45,0.00012054,2]
[360637628,1746912667208,-444.01,0.00012054,2]
[360637630,1746912667219,-1176.69,0.00012054,2]
[360637632,1746912667229,-513.96,0.00012054,2]
[360637634,1746912667239,-656.69,0.00012054,2]
[360637636,1746912667249,-444.3404758,0.00012054,2]
[360637638,1746912667259,-1565.91,0.00012054,2]
[360637640,1746912667268,-203.26378741,0.000123,2]
[360637642,1746912667278,-151.0,0.00012326,2]
[360637644,1746912667288,-400.0,0.00012328,2]
[360637646,1746912667297,-450.55,0.00012328,2]
[360637648,1746912667308,-400.0,0.00012328,2]
[360637650,1746912667318,-483.15,0.00012328,2]
[360637652,1746912667328,-400.0,0.00012328,2]
[360637655,1746912667338,-400.0,0.00012328,2]
[360637657,1746912667348,-400.0,0.00012328,2]
[360637659,1746912667358,-541.69192625,0.00012328,2]
[360637661,1746912667371,-400.0,0.00012328,2]
[360637663,1746912667382,-767.08,0.00012328,2]
[360637665,1746912667392,-523.05,0.00012328,2]
[360637667,1746912667402,-400.0,0.00012328,2]
[360637669,1746912667412,-400.0,0.00012328,2]
[360637671,1746912667422,-428.69,0.00012328,2]
[360637673,1746912667432,-1231.88,0.00012328,2]
[360637675,1746912667442,-400.0,0.00012328,2]
[360637677,1746912667453,-555.94,0.00012328,2]
[360637679,1746912667463,-1008.55,0.00012328,2]
[360637681,1746912667474,-400.0,0.00012328,2]
[360637683,1746912667483,-632.05,0.00012328,2]
[360637685,1746912667493,-1052.41,0.00012328,2]
[360637687,1746912667503,-400.0,0.00012328,2]
[360637689,1746912667512,-400.0,0.00012328,2]
[360637691,1746912667522,-459.64,0.00012328,2]
[360637693,1746912667532,-468.37,0.00012328,2]
[360637695,1746912667542,-403.73,0.00012328,2]
[360637697,1746912667552,-413.92,0.00012328,2]
[360637699,1746912667562,-619.62,0.00012328,2]
[360637701,1746912667572,-695.09,0.00012328,2]
[360637703,1746912667582,-735.58,0.00012328,2]
[360637706,1746912667592,-721.89,0.00012328,2]
[360637707,1746912667603,-1548.4,0.00012328,2]
[360637710,1746912667612,-2356.91,0.00012328,2]
[360637712,1746912667622,-794.11,0.00012328,2]
[360637713,1746912667632,-838.55,0.00012328,2]
[360637716,1746912667641,-400.0,0.00012328,2]
[360637718,1746912667651,-400.0,0.00012328,2]
[360637720,1746912667661,-3381.21,0.00012328,2]
[360637722,1746912667671,-228.29805025,0.00012328,2]
[360637724,1746912667681,-2898.64,0.00012328,2]
[360637726,1746912667690,-481.84,0.00012328,2]
[360637728,1746912667700,-400.0,0.00012328,2]
[360637730,1746912667709,-400.0,0.00012328,2]
[360637732,1746912667720,-1333.51,0.00012328,2]
[360637734,1746912667730,-633.58,0.00012328,2]
[360637736,1746912667739,-400.0,0.00012328,2]
[360637738,1746912667749,-494.9,0.00012328,2]
[360637740,1746912667767,-513.57,0.00012328,2]
[360637742,1746912667777,-802.91,0.00012328,2]
[360637744,1746912667788,-505.78,0.00012328,2]
[360637746,1746912667798,-626.66,0.00012328,2]
[360637748,1746912667808,-809.51,0.00012328,2]
[360637750,1746912667818,-421.59830834,0.00012328,2]
[360637752,1746912667828,-842.73,0.00012328,2]
[360637754,1746912667839,-697.59,0.00012328,2]
[360637756,1746912667849,-1841.44,0.00012328,2]
[360637758,1746912667859,-788.65,0.00012328,2]
[360637760,1746912667869,-1039.37,0.00012328,2]
[360637762,1746912667879,-569.05,0.00012328,2]
[360637765,1746912667889,-2342.17,0.00012328,2]
[360637767,1746912667900,-451.36,0.00012328,2]
[360637769,1746912667909,-695.2,0.00012328,2]
[360637771,1746912667919,-1028.56,0.00012328,2]
[360637773,1746912667929,-498.13,0.00012328,2]
[360637775,1746912667939,-2119.75,0.00012328,2]
[360637776,1746912667950,-4434.68,0.00012328,2]
[360637777,1746912667960,-935.35,0.00012328,2]
[360637778,1746912667969,-680.96,0.00012328,2]
[360637779,1746912667979,-626.61,0.00012328,2]
[360637780,1746912667989,-424.95,0.00012328,2]
[360637781,1746912667999,-1042.16,0.00012328,2]
[360637782,1746912668008,-2312.88,0.00012328,2]
[360637783,1746912668018,-400.0,0.00012328,2]
[360637784,1746912668027,-400.0,0.00012328,2]
[360637785,1746912668037,-688.73,0.00012328,2]
[360637786,1746912668047,-706.22,0.00012328,2]
[360637787,1746912668057,-439.66,0.00012328,2]
[360637789,1746912668067,-1085.41,0.00012328,2]
[360637792,1746912668077,-841.55,0.00012328,2]
[360637794,1746912668087,-671.75,0.00012328,2]
[360637796,1746912668096,-400.0,0.00012328,2]
[360637798,1746912668107,-2146.14,0.00012328,2]
[360637800,1746912668118,-1015.72,0.00012328,2]
[360637802,1746912668128,-6440.41,0.00012328,2]
[360637804,1746912668139,-1037.4,0.00012328,2]
[360637806,1746912668149,-440.94,0.00012328,2]
[360637808,1746912668159,-400.0,0.00012328,2]
[360637810,1746912668169,-4790.07,0.00012328,2]
[360637812,1746912668179,-1429.95,0.00012328,2]
[360637814,1746912668189,-430.02,0.00012328,2]
[360637817,1746912668199,-400.0,0.00012328,2]
[360637819,1746912668209,-1223.02,0.00012328,2]
[360637836,1746912668361,-848.59,0.00012328,2]
[360637838,1746912668372,-400.0,0.00012328,2]
[360637840,1746912668383,-2882.98,0.00012328,2]
[360637842,1746912668392,-513.02,0.00012328,2]
[360637843,1746912668401,-463.45,0.00012328,2]
[360637845,1746912668411,-573.32,0.00012328,2]
[360637848,1746912668423,-1204.18,0.00012328,2]
[360637850,1746912668433,-1967.65,0.00012328,2]
[360637852,1746912668442,-3088.11,0.00012328,2]
[360637854,1746912668454,-1232.95,0.00012328,2]
[360637855,1746912668463,-1041.57,0.00012328,2]
[360637857,1746912668474,-700.78,0.00012328,2]
[360637859,1746912668483,-4783.86,0.00012328,2]
[360637861,1746912668493,-407.69,0.00012328,2]
[360637863,1746912668502,-1652.45,0.00012328,2]
[360637865,1746912668512,-444.01,0.00012328,2]
[360637867,1746912668522,-1176.69,0.00012328,2]
[360637869,1746912668531,-513.96,0.00012328,2]
[360637871,1746912668541,-656.69,0.00012328,2]
[360637873,1746912668550,-1565.91,0.00012328,2]
[360637875,1746912668559,-186.74365,0.00012329,2]
[360637877,1746912668569,-186.74365,0.00012329,2]
[360637879,1746912668578,-186.74365,0.00012329,2]
[360637881,1746912668588,-186.74365,0.00012329,2]
[360637883,1746912668597,-186.74365,0.00012329,2]
[360637885,1746912668606,-186.74365,0.00012329,2]
[360637887,1746912668615,-186.74365,0.00012329,2]
[360637889,1746912668624,-186.74365,0.00012329,2]
[360637892,1746912668634,-186.74365,0.00012329,2]
[360637894,1746912668644,-186.74365,0.00012329,2]
[360637896,1746912668654,-186.74365,0.00012329,2]
[360637898,1746912668663,-186.74365,0.00012329,2]
[360637899,1746912668672,-186.74365,0.00012329,2]
[360637901,1746912668682,-186.74365,0.00012329,2]
[360637903,1746912668691,-186.74365,0.00012329,2]
[360637905,1746912668700,-186.74365,0.00012329,2]
[360637907,1746912668710,-186.74365,0.00012329,2]
[360637910,1746912668719,-186.74365,0.00012329,2]
[360637911,1746912668728,-186.74365,0.00012329,2]
[360637914,1746912668738,-186.743658,0.00012329,2]
[360637916,1746912668747,-8914.24,0.00012329,2]
[360637918,1746912668756,-27034.55,0.00012329,2]
[360637920,1746912668766,-22528.79,0.00012329,2]
[360637922,1746912668775,-18773.99,0.00012329,2]
[360637924,1746912668784,-15644.99,0.00012329,2]
[360637926,1746912668793,-13037.5,0.00012329,2]
[360637927,1746912668802,-10864.58,0.00012329,2]
[360637929,1746912668811,-9053.82,0.00012329,2]
[360637930,1746912668821,-7544.85,0.00012329,2]
[360637932,1746912668830,-6287.37,0.00012329,2]
[360637934,1746912668839,-2297.0,0.000125,2]
[360637935,1746912668849,-11264.05429344,0.000125,2]
[360637937,1746912668858,-400.0,0.00012602,2]
[360637938,1746912668867,-450.55,0.00012602,2]
[360637940,1746912668876,-400.0,0.00012602,2]
[360637941,1746912668885,-483.15,0.00012602,2]
[360637943,1746912668895,-315.60386582,0.00012602,2]
[360637944,1746912668905,-400.0,0.00012602,2]
[360637946,1746912668914,-400.0,0.00012602,2]
[360637948,1746912668924,-400.0,0.00012602,2]
[360637949,1746912668933,-767.08,0.00012602,2]
[360637951,1746912668943,-523.05,0.00012602,2]
[360637952,1746912668953,-400.0,0.00012602,2]
[360637954,1746912668962,-400.0,0.00012602,2]
[360637955,1746912668972,-428.69,0.00012602,2]
[360637957,1746912668981,-1231.88,0.00012602,2]
[360637958,1746912668991,-400.0,0.00012602,2]
[360637960,1746912669001,-555.94,0.00012602,2]
[360637962,1746912669011,-1008.55,0.00012602,2]
[360637963,1746912669021,-400.0,0.00012602,2]
[360637965,1746912669031,-632.05,0.00012602,2]
[360637967,1746912669041,-1052.41,0.00012602,2]
[360637968,1746912669051,-400.0,0.00012602,2]
[360637970,1746912669060,-400.0,0.00012602,2]
[360637971,1746912669069,-459.64,0.00012602,2]
[360637973,1746912669078,-468.37,0.00012602,2]
[360637975,1746912669087,-403.73,0.00012602,2]
[360637976,1746912669096,-413.92,0.00012602,2]
[360637978,1746912669105,-619.62,0.00012602,2]
[360637980,1746912669114,-695.09,0.00012602,2]
[360637981,1746912669123,-735.58,0.00012602,2]
[360637983,1746912669133,-721.89,0.00012602,2]
[360637985,1746912669143,-1548.4,0.00012602,2]
[360637986,1746912669152,-2356.91,0.00012602,2]
[360637988,1746912669162,-794.11,0.00012602,2]
[360637990,1746912669171,-838.55,0.00012602,2]
[360637991,1746912669180,-400.0,0.00012602,2]
[360637993,1746912669189,-400.0,0.00012602,2]
[360637995,1746912669199,-3381.21,0.00012602,2]
[360637996,1746912669208,-2898.64,0.00012602,2]
[360637998,1746912669218,-481.84,0.00012602,2]
[360638000,1746912669226,-400.0,0.00012602,2]
[360638001,1746912669236,-400.0,0.00012602,2]
[360638003,1746912669245,-1333.51,0.00012602,2]
[360638004,1746912669255,-633.58,0.00012602,2]
[360638006,1746912669264,-400.0,0.00012602,2]
[360638008,1746912669274,-494.9,0.00012602,2]
[360638009,1746912669283,-513.57,0.00012602,2]
[360638011,1746912669293,-802.91,0.00012602,2]
[360638013,1746912669302,-505.78,0.00012602,2]
[360638014,1746912669311,-626.66,0.00012602,2]
[360638016,1746912669321,-809.51,0.00012602,2]
[360638018,1746912669331,-842.73,0.00012602,2]
[360638019,1746912669341,-697.59,0.00012602,2]
[360638021,1746912669351,-1841.44,0.00012602,2]
[360638023,1746912669360,-788.65,0.00012602,2]
[360638024,1746912669372,-1039.37,0.00012602,2]
[360638026,1746912669382,-569.05,0.00012602,2]
[360638028,1746912669391,-2342.17,0.00012602,2]
[360638029,1746912669400,-451.36,0.00012602,2]
[360638031,1746912669410,-695.2,0.00012602,2]
[360638032,1746912669420,-1028.56,0.00012602,2]
[360638034,1746912669430,-498.13,0.00012602,2]
[360638036,1746912669439,-2119.75,0.00012602,2]
[360638037,1746912669450,-4434.68,0.00012602,2]
[360638039,1746912669461,-935.35,0.00012602,2]
[360638041,1746912669471,-680.96,0.00012602,2]
[360638042,1746912669480,-626.61,0.00012602,2]
[360638044,1746912669489,-424.95,0.00012602,2]
[360638046,1746912669499,-1042.16,0.00012602,2]
[360638047,1746912669509,-2312.88,0.00012602,2]
[360638049,1746912669518,-400.0,0.00012602,2]
[360638050,1746912669528,-400.0,0.00012602,2]
[360638052,1746912669538,-688.73,0.00012602,2]
[360638054,1746912669548,-706.22,0.00012602,2]
[360638055,1746912669557,-439.66,0.00012602,2]
[360638057,1746912669567,-1085.41,0.00012602,2]
[360638059,1746912669577,-841.55,0.00012602,2]
[360638060,1746912669586,-671.75,0.00012602,2]
[360638062,1746912669595,-400.0,0.00012602,2]
[360638064,1746912669605,-2146.14,0.00012602,2]
[360638065,1746912669614,-1015.72,0.00012602,2]
[360638067,1746912669623,-6440.41,0.00012602,2]
[360638068,1746912669633,-1037.4,0.00012602,2]
[360638070,1746912669643,-440.94,0.00012602,2]
[360638072,1746912669653,-400.0,0.00012602,2]
[360638073,1746912669662,-4790.07,0.00012602,2]
[360638075,1746912669671,-1429.95,0.00012602,2]
[360638077,1746912669681,-430.02,0.00012602,2]
[360638078,1746912669691,-400.0,0.00012602,2]
[360638080,1746912669700,-1223.02,0.00012602,2]